[Event "DLM Youth 2024"]
[Site "Tuebingen"]
[Date "2024.10.05"]
[Round "5"]
[White "Herrmann, Arthur"]
[Black "Mester, Philipp"]
[Result "1/2-1/2"]
[ECO "C54"]
[WhiteElo "2031"]
[BlackElo "1996"]
[Annotator "RC"]
[PlyCount "102"]
[EventDate "2024.10.03"]
[EventType "team-swiss"]
[EventRounds "7"]
[EventCountry "GER"]
[SourceTitle "playchess.com"]
[Source "ChessBase"]
[SourceQuality "1"]
[TimeControl "40/5400+30:1800+30"]

1. e4 {[%emt 0:00:05]} e5 {[%emt 0:00:16]} 2. Nf3 {[%emt 0:00:15]} Nc6 {[%emt 0:00:07]} 3. Bb5 {[%emt 0:00:13]} Nf6 {[%emt 0:00:13]} 4. d3 {[%emt 0:00:28]} Bc5 {[%emt 0:00:06]} 5. c3 {[%emt 0:00:24]} O-O {[%emt 0:00:56]} 6. O-O {[%emt 0:00:29]} d6 {[%emt 0:00:28]} 7. Nbd2 {[%emt 0:01:37]} a6 {[%emt 0:01:08]} 8. Ba4 {[%emt 0:00:15]} Ba7 {[%emt 0:00:47]} 9. h3 {[%emt 0:00:57]} Ne7 {[%emt 0:01:19]} 10. Re1 {[%emt 0:01:08]} Ng6 {[%emt 0:00:43]} 11. Nf1 {[%emt 0:01:12]} b5 {[%emt 0:04:34]} 12. Bc2 {[%emt 0:00:48]} d5 {[%emt 0:04:35]} 13. Ng3 {[%emt 0:18:46]} Bb7 {[%emt 0:05:56]} 14. a4 {[%emt 0:10:31]} h6 {[%emt 0:04:07]} 15. Qe2 {[%emt 0:21:28]} Re8 {[%emt 0:10:08]} 16. Be3 {[%emt 0:06:59]} Nf4 {[%emt 0:04:15]} 17. Qd2 {[%emt 0:02:50]} dxe4 {[%emt 0:05:27]} 18. dxe4 {[%emt 0:00:58]} Bxe3 {[%emt 0:02:37]} 19. Qxe3 {[%emt 0:01:00]} N6h5 {[%emt 0:10:42]} 20. Nxh5 {[%emt 0:04:43]} Nxh5 {[%emt 0:00:15]} 21. axb5 {[%emt 0:00:36]} axb5 {[%emt 0:02:31]} 22. Qc5 {[%emt 0:01:06]} Qe7 {[%emt 0:11:56]} 23. Qxb5 {[%emt 0:01:07]} Rab8 {[%emt 0:00:34]} 24. Qc4 {[%emt 0:02:22]} Nf4 {[%emt 0:03:49]} 25. Ra5 {[%emt 0:12:45]} Qf6 {[%emt 0:02:58]} 26. Qxc7 {[%emt 0:03:13]} Qg6 {[%emt 0:03:30]} 27. g3 {[%emt 0:02:02]} Nxh3+ {[%emt 0:00:33]} 28. Kh2 {[%emt 0:02:09]} Nxf2 {[%emt 0:04:31]} 29. Nxe5 {[%emt 0:03:03]} Ng4+ {[%emt 0:02:44]} 30. Nxg4 {[%emt 0:00:38]} Qxg4 {[%emt 0:00:05]} 31. Qf4 {[%emt 0:00:37]} Qe6 {[%emt 0:00:06]} 32. Rb5 {[%emt 0:00:57]} Qc6 {[%emt 0:01:38]} 33. Rb4 {[%emt 0:00:35]} Qc5 {[%emt 0:03:59]} 34. Bb3 {[%emt 0:00:33]} Kh8 {[%emt 0:01:31]} 35. Kg2 {[%emt 0:00:37]} Qa7 {[%emt 0:03:27]} 36. Kh2 {[%emt 0:00:26]} Rbd8 {[%emt 0:02:04]} 37. Re2 {[%emt 0:00:22]} Qa5 {[%emt 0:01:04]} 38. Rf2 {[%emt 0:00:41]} Qh5+ {[%emt 0:01:07]} 39. Kg1 {[%emt 0:00:28]} Ba6 {[%emt 0:01:06]} 40. Qxf7 {[%emt 0:00:32]} Qh3 {[%emt 0:01:30]} 41. Qf4 {[%emt 0:15:43]} Rd3 {[%emt 0:12:44]} 42. Rg2 {[%emt 0:03:06]} Red8 {[%emt 0:02:32]} 43. Rb8 {[%emt 0:04:31]} Bc8 {[%emt 0:00:47]} 44. Rb4 {[%emt 0:01:40]} Be6 {[%emt 0:02:04]} 45. Bc2 {[%emt 0:04:14]} R3d6 {[%emt 0:04:40]} 46. e5 {[%emt 0:02:56]} Rd1+ {[%emt 0:06:26]} 47. Bxd1 {[%emt 0:00:16]} Rxd1+ {[%emt 0:00:04]} 48. Kf2 {[%emt 0:00:14]} Bd5 {[%emt 0:00:20]} 49. Re4 {[%emt 0:01:11]} Bxe4 {[%emt 0:00:19]} 50. Qxe4 {[%emt 0:00:06]} Rd2+ {[%emt 0:00:15]} 51. Kg1 {[%emt 0:00:25]} Rd1+ {[%emt 0:00:06]} 1/2-1/2

[Event "DLM Youth 2024"]
[Site "Tuebingen"]
[Date "2024.10.05"]
[Round "5"]
[White "Sheng, Ming"]
[Black "Walter, Richard"]
[Result "1-0"]
[ECO "B11"]
[WhiteElo "2007"]
[BlackElo "1958"]
[Annotator "RC"]
[PlyCount "73"]
[EventDate "2024.10.03"]
[EventType "team-swiss"]
[EventRounds "7"]
[EventCountry "GER"]
[SourceTitle "playchess.com"]
[Source "ChessBase"]
[SourceQuality "1"]
[TimeControl "40/5400+30:1800+30"]

1. e4 {[%emt 0:00:01]} c6 {[%emt 0:00:05]} 2. Nc3 {[%emt 0:00:05]} d5 {[%emt 0:00:03]} 3. Nf3 {[%emt 0:00:03]} dxe4 4. Nxe4 {[%emt 0:00:04]} Nf6 {[%emt 0:00:10]} 5. Qe2 {[%emt 0:00:05]} Nxe4 6. Qxe4 {[%emt 0:00:04]} Nd7 {[%emt 0:00:10]} 7. Bc4 {[%emt 0:00:27]} Nf6 {[%emt 0:00:04]} 8. Ne5 {[%emt 0:00:04]} e6 {[%emt 0:00:04]} 9. Qe2 {[%emt 0:00:04]} b5 {[%emt 0:00:04]} 10. Bd3 {[%emt 0:00:03]} Qc7 {[%emt 0:00:09]} 11. a4 {[%emt 0:00:23]} Bd6 {[%emt 0:00:31]} 12. Nxc6 {[%emt 0:00:26]} b4 {[%emt 0:00:06]} 13. Nd4 {[%emt 0:00:11]} a6 {[%emt 0:00:08]} 14. Nf5 {[%emt 0:00:16]} Bb7 {[%emt 0:01:53]} 15. Nxd6+ {[%emt 0:08:46]} Qxd6 {[%emt 0:00:06]} 16. O-O {[%emt 0:03:16]} h5 {[%emt 0:00:33]} 17. Qe3 {[%emt 0:19:50]} Qd5 {[%emt 0:04:32]} 18. f3 {[%emt 0:01:26]} Ng4 {[%emt 0:01:56]} 19. Qe2 {[%emt 0:02:09]} Qd4+ {[%emt 0:01:32]} 20. Kh1 {[%emt 0:01:24]} Qd6 {[%emt 0:00:08]} 21. f4 {[%emt 0:03:39]} g5 {[%emt 0:02:52]} 22. Be4 {[%emt 0:03:06]} gxf4 {[%emt 0:00:18]} 23. Qf3 {[%emt 0:01:14]} Bxe4 {[%emt 0:11:35]} 24. Qxe4 {[%emt 0:01:08]} Ra7 {[%emt 0:00:06]} 25. Qxf4 {[%emt 0:01:44]} Qb6 {[%emt 0:00:20]} 26. a5 {[%emt 0:06:47]} Qb7 {[%emt 0:00:06]} 27. Ra4 {[%emt 0:03:05]} e5 {[%emt 0:04:00]} 28. Qxb4 {[%emt 0:01:03]} Qc8 {[%emt 0:01:06]} 29. Qb6 {[%emt 0:05:10]} Rc7 {[%emt 0:03:18]} 30. c3 {[%emt 0:03:44]} Rc4 {[%emt 0:03:44]} 31. Qb3 {[%emt 0:00:49]} Rxa4 {[%emt 0:03:26]} 32. Qxa4+ {[%emt 0:00:43]} Kf8 {[%emt 0:00:10]} 33. Qb4+ {[%emt 0:01:39]} Kg8 {[%emt 0:00:32]} 34. Qe7 {[%emt 0:02:12]} Qc4 {[%emt 0:01:37]} 35. d3 {[%emt 0:00:37]} Qb3 {[%emt 0:01:20]} 36. Bg5 {[%emt 0:01:52]} Qb8 {[%emt 0:06:19]} 37. Qxf7# {[%emt 0:01:13]} 1-0

[Event "DLM Youth 2024"]
[Site "Tuebingen"]
[Date "2024.10.05"]
[Round "5"]
[White "Albrecht, Neil"]
[Black "Malinowsky, Levi"]
[Result "1/2-1/2"]
[ECO "B90"]
[WhiteElo "1997"]
[BlackElo "2065"]
[Annotator "RC"]
[PlyCount "120"]
[EventDate "2024.10.03"]
[EventType "team-swiss"]
[EventRounds "7"]
[EventCountry "GER"]
[SourceTitle "playchess.com"]
[Source "ChessBase"]
[SourceQuality "1"]
[TimeControl "40/5400+30:1800+30"]

1. e4 {[%emt 0:00:01]} c5 {[%emt 0:00:06]} 2. Nf3 {[%emt 0:01:08]} d6 {[%emt 0:00:15]} 3. d4 {[%emt 0:00:15]} cxd4 4. Nxd4 {[%emt 0:00:17]} Nf6 {[%emt 0:00:15]} 5. Nc3 {[%emt 0:00:07]} a6 {[%emt 0:00:09]} 6. Bd3 {[%emt 0:00:14]} e5 {[%emt 0:00:30]} 7. Nde2 {[%emt 0:00:06]} Be7 {[%emt 0:00:49]} 8. O-O {[%emt 0:00:12]} O-O {[%emt 0:01:23]} 9. Ng3 {[%emt 0:00:27]} Be6 {[%emt 0:07:04]} 10. Nd5 {[%emt 0:01:52]} Nxd5 {[%emt 0:08:48]} 11. exd5 {[%emt 0:00:06]} Bxd5 {[%emt 0:00:21]} 12. Bxh7+ {[%emt 0:00:07]} Kxh7 {[%emt 0:00:04]} 13. Qxd5 {[%emt 0:00:08]} Nc6 {[%emt 0:03:19]} 14. f4 {[%emt 0:06:42]} f5 {[%emt 0:09:53]} 15. Be3 {[%emt 0:05:17]} g6 {[%emt 0:03:14]} 16. Rad1 {[%emt 0:01:56]} Qc7 {[%emt 0:11:05]} 17. c3 {[%emt 0:04:13]} Rad8 {[%emt 0:02:21]} 18. Ne2 {[%emt 0:03:27]} Bf6 {[%emt 0:07:10]} 19. Rf3 {[%emt 0:08:16]} Kg7 {[%emt 0:04:59]} 20. Rh3 {[%emt 0:04:04]} Rh8 {[%emt 0:01:13]} 21. Rxh8 {[%emt 0:00:16]} Kxh8 {[%emt 0:00:11]} 22. Qe6 {[%emt 0:03:44]} Kg7 {[%emt 0:04:15]} 23. g4 {[%emt 0:05:15]} Qd7 {[%emt 0:08:26]} 24. gxf5 {[%emt 0:01:25]} gxf5 {[%emt 0:00:20]} 25. Qxd7+ {[%emt 0:12:09]} Rxd7 {[%emt 0:00:03]} 26. fxe5 {[%emt 0:00:11]} Bxe5 {[%emt 0:00:19]} 27. Nf4 {[%emt 0:01:38]} Kf6 {[%emt 0:01:13]} 28. Kf2 {[%emt 0:02:32]} Rh7 {[%emt 0:01:04]} 29. h3 {[%emt 0:00:52]} Ne7 {[%emt 0:02:04]} 30. Rg1 {[%emt 0:11:42]} Bxf4 {[%emt 0:03:08]} 31. Bxf4 {[%emt 0:00:23]} Rxh3 {[%emt 0:00:13]} 32. Bg5+ {[%emt 0:02:15]} Kf7 {[%emt 0:00:10]} 33. Bxe7 {[%emt 0:00:04]} Kxe7 {[%emt 0:00:15]} 34. Rg7+ {[%emt 0:00:04]} Kf6 {[%emt 0:00:17]} 35. Rxb7 {[%emt 0:00:03]} Kg5 {[%emt 0:01:35]} 36. Rb6 {[%emt 0:06:04]} Kg4 {[%emt 0:01:10]} 37. Rxd6 {[%emt 0:00:10]} Rh2+ {[%emt 0:00:34]} 38. Kg1 {[%emt 0:03:16]} Rxb2 {[%emt 0:00:11]} 39. Rxa6 {[%emt 0:00:42]} Kf3 {[%emt 0:03:18]} 40. c4 {[%emt 0:01:45]} f4 {[%emt 0:06:02]} 41. Rf6 {[%emt 0:32:59]} Rg2+ {[%emt 0:31:47]} 42. Kf1 {[%emt 0:00:20]} Rxa2 {[%emt 0:00:07]} 43. Kg1 {[%emt 0:00:07]} Rc2 {[%emt 0:00:43]} 44. Rf8 {[%emt 0:02:14]} Rxc4 {[%emt 0:01:59]} 45. Rf7 {[%emt 0:00:37]} Rc8 {[%emt 0:00:43]} 46. Rf6 {[%emt 0:01:07]} Rc1+ {[%emt 0:00:51]} 47. Kh2 {[%emt 0:00:44]} Rf1 {[%emt 0:00:57]} 48. Ra6 {[%emt 0:00:17]} Rd1 {[%emt 0:01:21]} 49. Rf6 {[%emt 0:00:35]} Rd4 {[%emt 0:00:41]} 50. Kg1 {[%emt 0:00:41]} Rd5 {[%emt 0:00:33]} 51. Rf8 {[%emt 0:00:40]} Re5 {[%emt 0:00:29]} 52. Rf7 {[%emt 0:00:31]} Re1+ {[%emt 0:01:16]} 53. Kh2 {[%emt 0:00:05]} Ke3 {[%emt 0:00:30]} 54. Kg2 {[%emt 0:03:08]} Re2+ {[%emt 0:00:17]} 55. Kf1 {[%emt 0:00:30]} Rc2 {[%emt 0:00:26]} 56. Rf8 {[%emt 0:00:30]} Kf3 {[%emt 0:01:01]} 57. Kg1 {[%emt 0:00:51]} Rg2+ {[%emt 0:00:05]} 58. Kf1 {[%emt 0:00:31]} Rg4 {[%emt 0:00:23]} 59. Ra8 {[%emt 0:02:13]} Kg3 {[%emt 0:00:10]} 60. Ra3+ {[%emt 0:00:30]} f3 {[%emt 0:00:23]} 1/2-1/2

[Event "DLM Youth 2024"]
[Site "Tuebingen"]
[Date "2024.10.05"]
[Round "5"]
[White "Abou Wally, Adrian"]
[Black "Uhlmann, Tim"]
[Result "1-0"]
[ECO "C56"]
[WhiteElo "1991"]
[BlackElo "2067"]
[Annotator "RC"]
[PlyCount "83"]
[EventDate "2024.10.03"]
[EventType "team-swiss"]
[EventRounds "7"]
[EventCountry "GER"]
[SourceTitle "playchess.com"]
[Source "ChessBase"]
[SourceQuality "1"]
[TimeControl "40/5400+30:1800+30"]

1. e4 {[%emt 0:00:01]} e5 {[%emt 0:00:05]} 2. Nf3 {[%emt 0:00:03]} Nc6 {[%emt 0:00:19]} 3. Bc4 {[%emt 0:00:05]} Bc5 {[%emt 0:00:04]} 4. c3 {[%emt 0:00:04]} Nf6 {[%emt 0:00:03]} 5. d4 {[%emt 0:00:14]} exd4 {[%emt 0:00:22]} 6. O-O {[%emt 0:00:16]} Nxe4 {[%emt 0:00:22]} 7. cxd4 {[%emt 0:00:27]} d5 {[%emt 0:00:04]} 8. dxc5 {[%emt 0:00:12]} dxc4 {[%emt 0:00:04]} 9. Qe2 {[%emt 0:00:17]} Qd3 {[%emt 0:00:19]} 10. Re1 {[%emt 0:00:24]} f5 {[%emt 0:00:17]} 11. Nc3 {[%emt 0:00:18]} O-O {[%emt 0:00:14]} 12. Nxe4 {[%emt 0:00:07]} fxe4 {[%emt 0:00:03]} 13. Qxe4 {[%emt 0:00:07]} Bf5 {[%emt 0:00:35]} 14. Qh4 {[%emt 0:00:30]} Rae8 {[%emt 0:01:04]} 15. Bf4 {[%emt 0:01:22]} Nd4 {[%emt 0:05:43]} 16. Nxd4 {[%emt 0:18:42]} Qxd4 {[%emt 0:02:44]} 17. Qg3 {[%emt 0:01:12]} Qxb2 {[%emt 0:19:54]} 18. Be5 {[%emt 0:00:19]} Rxe5 {[%emt 0:00:00]} 19. Qxe5 {[%emt 0:09:03]} Qxe5 {[%emt 0:00:00]} 20. Rxe5 {[%emt 0:02:33]} c3 {[%emt 0:11:21]} 21. Kf1 {[%emt 0:08:15]} Bd3+ {[%emt 0:01:44]} 22. Ke1 {[%emt 0:01:47]} Rd8 {[%emt 0:02:06]} 23. Rc1 {[%emt 0:02:53]} c2 {[%emt 0:01:51]} 24. Re7 {[%emt 0:04:45]} Rc8 {[%emt 0:13:36]} 25. g4 {[%emt 0:12:07]} Kf8 {[%emt 0:02:02]} 26. Rd7 {[%emt 0:05:46]} Bg6 {[%emt 0:05:25]} 27. Kd2 {[%emt 0:04:16]} c6 {[%emt 0:03:13]} 28. Re1 {[%emt 0:00:59]} b6 {[%emt 0:04:10]} 29. f4 {[%emt 0:07:14]} h5 {[%emt 0:02:53]} 30. f5 {[%emt 0:01:29]} Bh7 {[%emt 0:00:06]} 31. h3 {[%emt 0:00:35]} hxg4 {[%emt 0:00:04]} 32. hxg4 {[%emt 0:01:28]} bxc5 {[%emt 0:01:09]} 33. Kxc2 {[%emt 0:01:06]} Rb8 {[%emt 0:06:28]} 34. Ree7 {[%emt 0:00:33]} Bg8 {[%emt 0:01:02]} 35. Rxa7 {[%emt 0:00:08]} Bxa2 {[%emt 0:00:00]} 36. Rxg7 {[%emt 0:02:01]} Bd5 {[%emt 0:00:00]} 37. f6 {[%emt 0:01:32]} c4 {[%emt 0:01:24]} 38. g5 {[%emt 0:01:27]} c5 {[%emt 0:00:00]} 39. g6 {[%emt 0:04:44]} Rb3 {[%emt 0:00:00]} 40. Rge7 {[%emt 0:07:58]} Rg3 {[%emt 0:00:34]} 41. g7+ {[%emt 0:30:12]} Kg8 {[%emt 0:30:04]} 42. Re8+ {[%emt 0:00:27]} 1-0

[Event "DLM Youth 2024"]
[Site "Tuebingen"]
[Date "2024.10.05"]
[Round "5"]
[White "Buchholz, Maja Patricia"]
[Black "Peglau, Paul David"]
[Result "1-0"]
[ECO "A20"]
[WhiteElo "1988"]
[BlackElo "1943"]
[Annotator "RC"]
[PlyCount "119"]
[EventDate "2024.10.03"]
[EventType "team-swiss"]
[EventRounds "7"]
[EventCountry "GER"]
[SourceTitle "playchess.com"]
[Source "ChessBase"]
[SourceQuality "1"]
[TimeControl "40/5400+30:1800+30"]

1. c4 {[%emt 0:00:02]} e5 {[%emt 0:00:08]} 2. g3 {[%emt 0:00:08]} Nf6 {[%emt 0:00:09]} 3. Bg2 {[%emt 0:00:10]} c6 {[%emt 0:00:10]} 4. Nf3 {[%emt 0:00:10]} e4 {[%emt 0:00:07]} 5. Nd4 {[%emt 0:00:06]} Qb6 {[%emt 0:00:08]} 6. Nb3 {[%emt 0:00:28]} a5 {[%emt 0:00:14]} 7. d3 {[%emt 0:00:22]} a4 {[%emt 0:00:15]} 8. N3d2 {[%emt 0:00:09]} e3 {[%emt 0:02:30]} 9. fxe3 {[%emt 0:00:49]} Ng4 {[%emt 0:00:27]} 10. Nf1 {[%emt 0:00:56]} d5 {[%emt 0:03:59]} 11. cxd5 {[%emt 0:05:37]} cxd5 {[%emt 0:00:15]} 12. d4 {[%emt 0:06:09]} Qf6 {[%emt 0:11:55]} 13. Bf3 {[%emt 0:01:54]} h5 {[%emt 0:03:42]} 14. h3 {[%emt 0:11:26]} Nh6 {[%emt 0:01:15]} 15. Nc3 {[%emt 0:02:02]} Bb4 {[%emt 0:15:53]} 16. Qd3 {[%emt 0:25:18]} Nc6 {[%emt 0:07:56]} 17. Bxd5 {[%emt 0:02:06]} Nf5 {[%emt 0:05:31]} 18. Bf3 {[%emt 0:07:20]} Qd6 {[%emt 0:08:31]} 19. Qe4+ {[%emt 0:04:07]} Kf8 {[%emt 0:03:53]} 20. Kf2 {[%emt 0:07:55]} h4 {[%emt 0:08:37]} 21. g4 {[%emt 0:03:14]} Ng3 {[%emt 0:04:37]} 22. Nxg3 {[%emt 0:01:05]} Qxg3+ {[%emt 0:01:22]} 23. Kf1 {[%emt 0:00:07]} a3 {[%emt 0:01:47]} 24. d5 {[%emt 0:06:25]} Bxc3 {[%emt 0:02:03]} 25. bxc3 {[%emt 0:00:06]} Ne5 {[%emt 0:03:33]} 26. Qf4 {[%emt 0:01:47]} Nxf3 {[%emt 0:02:43]} 27. Qxg3 {[%emt 0:00:30]} Nd2+ {[%emt 0:01:14]} 28. Bxd2 {[%emt 0:00:07]} hxg3 {[%emt 0:00:05]} 29. Kg2 {[%emt 0:00:09]} Ra4 {[%emt 0:00:51]} 30. Kxg3 {[%emt 0:00:47]} Ke7 {[%emt 0:00:24]} 31. Rhf1 {[%emt 0:04:29]} Rd8 {[%emt 0:01:24]} 32. Rf4 {[%emt 0:01:08]} Rxf4 {[%emt 0:00:48]} 33. exf4 {[%emt 0:00:20]} Rxd5 {[%emt 0:00:32]} 34. Be3 {[%emt 0:00:33]} f5 {[%emt 0:06:02]} 35. Rb1 {[%emt 0:01:13]} Kd7 {[%emt 0:01:51]} 36. Rb3 {[%emt 0:00:36]} Ra5 {[%emt 0:00:16]} 37. Bb6 {[%emt 0:01:07]} Ra6 {[%emt 0:00:40]} 38. Bc5 {[%emt 0:03:32]} Kc6 {[%emt 0:00:35]} 39. Bf8 {[%emt 0:01:20]} g6 {[%emt 0:00:44]} 40. Rxa3 {[%emt 0:00:55]} Rxa3 {[%emt 0:00:15]} 41. Bxa3 {[%emt 0:30:01]} Be6 {[%emt 0:30:13]} 42. Kh4 {[%emt 0:00:19]} fxg4 {[%emt 0:01:32]} 43. hxg4 {[%emt 0:00:15]} Bxa2 {[%emt 0:00:09]} 44. Kg5 {[%emt 0:00:19]} Bb1 {[%emt 0:00:12]} 45. c4 {[%emt 0:04:33]} Kd7 {[%emt 0:00:00]} 46. f5 {[%emt 0:00:00]} gxf5 {[%emt 0:00:00]} 47. gxf5 {[%emt 0:00:00]} b6 {[%emt 0:00:00]} 48. Kg6 {[%emt 0:00:00]} Ke8 {[%emt 0:00:00]} 49. Kf6 {[%emt 0:00:00]} Bc2 {[%emt 0:00:00]} 50. Ke6 {[%emt 0:00:00]} Bb3 {[%emt 0:00:00]} 51. e4 {[%emt 0:00:00]} b5 {[%emt 0:00:00]} 52. Kf6 {[%emt 0:00:00]} bxc4 {[%emt 0:04:40]} 53. Bb4 {[%emt 0:00:00]} c3 {[%emt 0:02:06]} 54. Bxc3 {[%emt 0:00:00]} Bf7 {[%emt 0:00:19]} 55. Bb4 {[%emt 0:00:00]} Bg8 {[%emt 0:00:15]} 56. e5 {[%emt 0:00:00]} Bf7 {[%emt 0:00:33]} 57. e6 {[%emt 0:00:00]} Bh5 {[%emt 0:00:34]} 58. Kg5 {[%emt 0:00:00]} Bf7 {[%emt 0:00:46]} 59. exf7+ {[%emt 0:00:00]} Kxf7 {[%emt 0:00:02]} 60. Bc3 {[%emt 0:00:00]} 1-0

[Event "DLM Youth 2024"]
[Site "Tuebingen"]
[Date "2024.10.05"]
[Round "5"]
[White "Kauth, Lukas"]
[Black "Windmueller, Simon"]
[Result "0-1"]
[ECO "B26"]
[WhiteElo "1988"]
[BlackElo "2052"]
[Annotator "RC"]
[PlyCount "100"]
[EventDate "2024.10.03"]
[EventType "team-swiss"]
[EventRounds "7"]
[EventCountry "GER"]
[SourceTitle "playchess.com"]
[Source "ChessBase"]
[SourceQuality "1"]
[TimeControl "40/5400+30:1800+30"]

1. e4 {[%emt 0:00:19]} c5 {[%emt 0:00:13]} 2. Nc3 {[%emt 0:03:41]} d6 {[%emt 0:00:06]} 3. Nge2 {[%emt 0:01:38]} Nf6 {[%emt 0:00:47]} 4. g3 {[%emt 0:00:24]} Nc6 {[%emt 0:00:16]} 5. Bg2 {[%emt 0:00:27]} g6 {[%emt 0:00:10]} 6. O-O {[%emt 0:02:04]} Bg7 {[%emt 0:00:06]} 7. d3 {[%emt 0:01:15]} O-O {[%emt 0:00:07]} 8. Be3 {[%emt 0:00:21]} Rb8 {[%emt 0:00:07]} 9. h3 {[%emt 0:01:16]} b5 {[%emt 0:04:09]} 10. Qd2 {[%emt 0:01:04]} b4 {[%emt 0:00:12]} 11. Nd1 {[%emt 0:00:22]} a5 {[%emt 0:01:35]} 12. f4 {[%emt 0:01:05]} Nd7 {[%emt 0:00:30]} 13. g4 {[%emt 0:01:15]} Nd4 {[%emt 0:00:53]} 14. Nxd4 {[%emt 0:06:58]} cxd4 {[%emt 0:00:07]} 15. Bf2 {[%emt 0:00:17]} Qc7 {[%emt 0:00:31]} 16. b3 {[%emt 0:03:17]} Ba6 {[%emt 0:03:17]} 17. Bh4 {[%emt 0:03:44]} f6 {[%emt 0:10:19]} 18. Nb2 {[%emt 0:10:33]} Qc3 {[%emt 0:02:14]} 19. Qxc3 {[%emt 0:00:48]} bxc3 {[%emt 0:00:08]} 20. Nd1 {[%emt 0:02:28]} e5 {[%emt 0:00:41]} 21. f5 {[%emt 0:08:55]} g5 {[%emt 0:00:52]} 22. Bg3 {[%emt 0:01:05]} Rfc8 {[%emt 0:01:07]} 23. Nf2 {[%emt 0:05:55]} Bb7 {[%emt 0:03:08]} 24. a4 {[%emt 0:08:09]} Nc5 {[%emt 0:01:11]} 25. Rfc1 {[%emt 0:02:55]} Rc6 {[%emt 0:04:10]} 26. Kf1 {[%emt 0:01:05]} Rb6 {[%emt 0:00:20]} 27. Ra3 {[%emt 0:07:16]} Bc6 {[%emt 0:01:44]} 28. Bf3 {[%emt 0:02:40]} Be8 {[%emt 0:01:38]} 29. Bd1 {[%emt 0:01:00]} Bf8 {[%emt 0:00:34]} 30. Ra2 {[%emt 0:01:29]} Bf7 {[%emt 0:00:38]} 31. Ke2 {[%emt 0:00:50]} d5 {[%emt 0:02:03]} 32. Kf3 {[%emt 0:01:48]} Rd8 {[%emt 0:01:09]} 33. Be2 {[%emt 0:01:15]} Rc6 {[%emt 0:09:02]} 34. Bf1 {[%emt 0:04:08]} Na6 {[%emt 0:03:30]} 35. Ke2 {[%emt 0:01:26]} Nc5 {[%emt 0:04:07]} 36. Kf3 {[%emt 0:01:22]} dxe4+ {[%emt 0:07:58]} 37. dxe4 {[%emt 0:00:40]} d3 {[%emt 0:00:23]} 38. Nxd3 {[%emt 0:01:56]} Nxd3 {[%emt 0:01:22]} 39. Bxd3 {[%emt 0:00:07]} Bxb3 {[%emt 0:00:21]} 40. Raa1 {[%emt 0:02:36]} Bc4 {[%emt 0:00:23]} 41. Ke2 {[%emt 0:39:04]} Rd4 {[%emt 0:30:52]} 42. Bxc4+ {[%emt 0:01:04]} Rcxc4 {[%emt 0:00:11]} 43. Bf2 {[%emt 0:00:15]} Rxe4+ {[%emt 0:09:52]} 44. Kd3 {[%emt 0:00:12]} Rb4 {[%emt 0:02:35]} 45. Kxc3 {[%emt 0:00:37]} Rf4 {[%emt 0:00:52]} 46. Be3 {[%emt 0:00:00]} Rf3 {[%emt 0:00:00]} 47. Kd2 {[%emt 0:00:00]} Rxh3 {[%emt 0:00:00]} 48. c4 {[%emt 0:00:00]} Rb3 {[%emt 0:00:00]} 49. Ba7 {[%emt 0:00:00]} Rb2+ {[%emt 0:00:00]} 50. Rc2 {[%emt 0:00:00]} Rh2+ {[%emt 0:00:00]} 0-1

[Event "DLM Youth 2024"]
[Site "Tuebingen"]
[Date "2024.10.05"]
[Round "5"]
[White "Noennig, Jakob"]
[Black "Kieselbach, Jannik"]
[Result "1-0"]
[ECO "C54"]
[WhiteElo "1986"]
[BlackElo "2014"]
[Annotator "RC"]
[PlyCount "57"]
[EventDate "2024.10.03"]
[EventType "team-swiss"]
[EventRounds "7"]
[EventCountry "GER"]
[SourceTitle "playchess.com"]
[Source "ChessBase"]
[SourceQuality "1"]
[TimeControl "40/5400+30:1800+30"]

1. e4 {[%emt 0:00:02]} e5 {[%emt 0:00:12]} 2. Nf3 {[%emt 0:00:07]} Nc6 {[%emt 0:00:07]} 3. Bc4 {[%emt 0:00:06]} Bc5 {[%emt 0:00:11]} 4. c3 {[%emt 0:00:05]} Nf6 {[%emt 0:00:07]} 5. d4 {[%emt 0:00:07]} exd4 {[%emt 0:00:10]} 6. e5 {[%emt 0:00:04]} d5 {[%emt 0:00:15]} 7. Bb5 {[%emt 0:00:07]} Ne4 {[%emt 0:00:15]} 8. cxd4 {[%emt 0:00:07]} Bb6 {[%emt 0:00:28]} 9. Nc3 {[%emt 0:00:06]} O-O {[%emt 0:00:21]} 10. Be3 {[%emt 0:00:09]} Bg4 {[%emt 0:00:51]} 11. h3 {[%emt 0:00:10]} Bh5 {[%emt 0:01:09]} 12. Qc2 {[%emt 0:00:06]} Nxc3 {[%emt 0:02:40]} 13. bxc3 {[%emt 0:00:53]} Ne7 {[%emt 0:20:20]} 14. Bd3 {[%emt 0:02:20]} Bg6 {[%emt 0:00:35]} 15. O-O {[%emt 0:00:51]} Qd7 {[%emt 0:04:22]} 16. Nh4 {[%emt 0:03:19]} Rac8 {[%emt 0:04:51]} 17. f4 {[%emt 0:07:46]} Bxd3 {[%emt 0:01:50]} 18. Qxd3 {[%emt 0:00:35]} f6 {[%emt 0:10:20]} 19. g4 {[%emt 0:07:51]} fxe5 {[%emt 0:03:51]} 20. fxe5 {[%emt 0:10:28]} Qe6 {[%emt 0:16:47]} 21. Nf5 {[%emt 0:04:42]} Rf7 {[%emt 0:01:40]} 22. Bg5 {[%emt 0:04:13]} Nc6 {[%emt 0:03:18]} 23. Kg2 {[%emt 0:04:01]} Rcf8 {[%emt 0:01:42]} 24. Rae1 {[%emt 0:02:12]} h6 {[%emt 0:02:55]} 25. Bf6 gxf6 {[%emt 0:11:10]} 26. Nxh6+ {[%emt 0:03:21]} Kh8 {[%emt 0:00:16]} 27. Nxf7+ {[%emt 0:03:24]} Qxf7 {[%emt 0:00:07]} 28. Rxf6 {[%emt 0:02:09]} Qg7 {[%emt 0:00:11]} 29. Qf5 {[%emt 0:00:39]} 1-0